[Event "Early-Titled-Tuesday-Blitz-February-13-2024"]
[Site "Chess.com"]
[Date "2024.02.13"]
[Round "6"]
[White "rhungaski"]
[Black "JonaszBaum"]
[Result "0-1"]
[WhiteElo "2492"]
[BlackElo "2659"]
[TimeControl "180+1"]
[EndTime "9:07:49 PST"]
[Termination "JonaszBaum won by checkmate"]

1. e4 {[%clk 0:03:00.9]} 1... c5 {[%clk 0:02:54.7]} 2. Nf3 {[%clk 0:03:00.7]}
2... Nc6 {[%clk 0:02:55]} 3. d4 {[%clk 0:03:00.7]} 3... cxd4 {[%clk 0:02:55.9]}
4. Nxd4 {[%clk 0:03:01.1]} 4... e5 {[%clk 0:02:56.6]} 5. Nf5 {[%clk 0:03:00]}
5... d5 {[%clk 0:02:56.3]} 6. Qxd5 {[%clk 0:02:59.5]} 6... Qxd5 {[%clk
0:02:55.8]} 7. exd5 {[%clk 0:03:00.4]} 7... Bxf5 {[%clk 0:02:56.2]} 8. dxc6
{[%clk 0:03:00.9]} 8... bxc6 {[%clk 0:02:56.4]} 9. Bd3 {[%clk 0:03:01.1]} 9...
Bxd3 {[%clk 0:02:56.1]} 10. cxd3 {[%clk 0:03:02]} 10... Nf6 {[%clk 0:02:54.7]}
11. Ke2 {[%clk 0:02:54.2]} 11... Bd6 {[%clk 0:02:46.9]} 12. Be3 {[%clk
0:02:53.9]} 12... Rb8 {[%clk 0:02:38.7]} 13. b3 {[%clk 0:02:53.7]} 13... Nd5
{[%clk 0:02:24.4]} 14. Rc1 {[%clk 0:02:48.7]} 14... Kd7 {[%clk 0:02:22]} 15. Nd2
{[%clk 0:02:45.2]} 15... a6 {[%clk 0:02:05.6]} 16. Rc4 {[%clk 0:02:29.2]} 16...
f5 {[%clk 0:02:01.1]} 17. Rac1 {[%clk 0:02:09.1]} 17... Ba3 {[%clk 0:01:48.5]}
18. R1c2 {[%clk 0:01:55.9]} 18... Nb4 {[%clk 0:01:44.8]} 19. R2c3 {[%clk
0:01:42.2]} 19... Nxa2 {[%clk 0:01:44.8]} 20. Rc2 {[%clk 0:01:42.8]} 20... Nb4
{[%clk 0:01:45.1]} 21. R2c3 {[%clk 0:01:40.9]} 21... Bb2 {[%clk 0:01:34.6]} 22.
Rxb4 {[%clk 0:01:33.2]} 22... Bxc3 {[%clk 0:01:32.2]} 23. Ra4 {[%clk 0:01:29.7]}
23... Bxd2 {[%clk 0:01:27.2]} 24. Kxd2 {[%clk 0:01:30.3]} 24... Rxb3 {[%clk
0:01:20.8]} 25. Rxa6 {[%clk 0:01:30.9]} 25... Rhb8 {[%clk 0:01:20.2]} 26. g3
{[%clk 0:01:25.1]} 26... Rb2+ {[%clk 0:01:10.5]} 27. Kc3 {[%clk 0:01:24.7]}
27... R8b3+ {[%clk 0:01:06.7]} 28. Kc4 {[%clk 0:01:25]} 28... Rb5 {[%clk
0:00:59.2]} 29. Ra7+ {[%clk 0:01:23.6]} 29... Rb7 {[%clk 0:00:58.5]} 30. Ra8
{[%clk 0:01:21.7]} 30... Rc2# {[%clk 0:00:58.5]} 0-1

[Event "Early-Titled-Tuesday-Blitz-February-13-2024"]
[Site "Chess.com"]
[Date "2024.02.13"]
[Round "6"]
[White "bulletteemo"]
[Black "Andrey_Klymchuk"]
[Result "1-0"]
[WhiteElo "2574"]
[BlackElo "2731"]
[TimeControl "180+1"]
[EndTime "9:07:54 PST"]
[Termination "bulletteemo won by checkmate"]

1. e4 {[%clk 0:02:55.1]} 1... e5 {[%clk 0:02:59.9]} 2. Nf3 {[%clk 0:02:54.9]}
2... Nc6 {[%clk 0:02:59.9]} 3. Bc4 {[%clk 0:02:55.1]} 3... Bc5 {[%clk 0:02:59]}
4. c3 {[%clk 0:02:55.5]} 4... Nf6 {[%clk 0:02:59.1]} 5. d4 {[%clk 0:02:55.9]}
5... exd4 {[%clk 0:02:58.7]} 6. b4 {[%clk 0:02:56.5]} 6... Bb6 {[%clk
0:02:55.4]} 7. e5 {[%clk 0:02:56.4]} 7... d5 {[%clk 0:02:50.9]} 8. exf6 {[%clk
0:02:56.5]} 8... dxc4 {[%clk 0:02:48.4]} 9. Qe2+ {[%clk 0:02:49.2]} 9... Be6
{[%clk 0:02:46.6]} 10. b5 {[%clk 0:02:43.5]} 10... d3 {[%clk 0:02:42]} 11. Qe4
{[%clk 0:02:43.4]} 11... Na5 {[%clk 0:02:20.9]} 12. fxg7 {[%clk 0:02:35.8]}
12... Rg8 {[%clk 0:02:20.8]} 13. Qxh7 {[%clk 0:02:35.5]} 13... Kd7 {[%clk
0:02:21.1]} 14. Bg5 {[%clk 0:02:17.8]} 14... f6 {[%clk 0:02:19.1]} 15. Bh6
{[%clk 0:02:18.1]} 15... Qe8 {[%clk 0:02:13.9]} 16. O-O {[%clk 0:02:12.3]} 16...
Qh5 {[%clk 0:02:11.9]} 17. Nbd2 {[%clk 0:01:43.9]} 17... Bf5 {[%clk 0:02:09.1]}
18. Ne4 {[%clk 0:01:44.6]} 18... Ke7 {[%clk 0:01:41.9]} 19. Ng3 {[%clk
0:01:39.1]} 19... Bxh7 {[%clk 0:01:36.3]} 20. Nxh5 {[%clk 0:01:39.3]} 20... c6
{[%clk 0:01:33.7]} 21. g4 {[%clk 0:01:34]} 21... cxb5 {[%clk 0:01:31.6]} 22. g5
{[%clk 0:01:34.4]} 22... fxg5 {[%clk 0:01:31.2]} 23. Nxg5 {[%clk 0:01:29.2]}
23... Bg6 {[%clk 0:01:27.2]} 24. Rae1+ {[%clk 0:01:28.6]} 24... Kd7 {[%clk
0:01:20.4]} 25. Nf6+ {[%clk 0:01:25.6]} 25... Kc7 {[%clk 0:01:18.4]} 26. Re7+
{[%clk 0:01:24.6]} 26... Kd6 {[%clk 0:01:14]} 27. Re6+ {[%clk 0:01:21]} 27...
Kc5 {[%clk 0:01:09]} 28. Nd7+ {[%clk 0:01:16.4]} 28... Kd5 {[%clk 0:01:07.2]}
29. Rxg6 {[%clk 0:01:16.4]} 29... Nc6 {[%clk 0:01:05.8]} 30. Nf6+ {[%clk
0:01:11.1]} 30... Kc5 {[%clk 0:01:05.1]} 31. Nge4# {[%clk 0:01:09.4]} 1-0

[Event "Early-Titled-Tuesday-Blitz-February-13-2024"]
[Site "Chess.com"]
[Date "2024.02.13"]
[Round "6"]
[White "OrtizAnahi2001"]
[Black "Balla_Tamas"]
[Result "0-1"]
[WhiteElo "2569"]
[BlackElo "2407"]
[TimeControl "180+1"]
[EndTime "9:07:57 PST"]
[Termination "Balla_Tamas won by resignation"]

1. d4 {[%clk 0:02:56.4]} 1... d5 {[%clk 0:02:59.1]} 2. c4 {[%clk 0:02:56.5]}
2... e6 {[%clk 0:02:59.5]} 3. Nc3 {[%clk 0:02:55.7]} 3... c5 {[%clk 0:02:59.1]}
4. cxd5 {[%clk 0:02:53.1]} 4... exd5 {[%clk 0:03:00]} 5. Nf3 {[%clk 0:02:53.4]}
5... Nc6 {[%clk 0:03:00.7]} 6. g3 {[%clk 0:02:53.8]} 6... Nf6 {[%clk 0:03:01]}
7. Bg2 {[%clk 0:02:54.2]} 7... cxd4 {[%clk 0:03:01.8]} 8. Nxd4 {[%clk
0:02:53.9]} 8... Bc5 {[%clk 0:03:02.3]} 9. Nb3 {[%clk 0:02:51.4]} 9... Bb6
{[%clk 0:02:58.9]} 10. O-O {[%clk 0:02:51.8]} 10... d4 {[%clk 0:02:58.8]} 11.
Na4 {[%clk 0:02:49.1]} 11... O-O {[%clk 0:02:58.6]} 12. Bg5 {[%clk 0:02:48.5]}
12... Re8 {[%clk 0:02:56.9]} 13. Rc1 {[%clk 0:02:46.6]} 13... h6 {[%clk
0:02:53.3]} 14. Bxf6 {[%clk 0:02:36.6]} 14... Qxf6 {[%clk 0:02:54.2]} 15. Nxb6
{[%clk 0:02:35.6]} 15... axb6 {[%clk 0:02:52.7]} 16. a3 {[%clk 0:02:29.4]} 16...
Bg4 {[%clk 0:02:45.9]} 17. Re1 {[%clk 0:02:25.4]} 17... Rad8 {[%clk 0:02:44.6]}
18. h3 {[%clk 0:02:22]} 18... Bh5 {[%clk 0:02:44.2]} 19. Qd2 {[%clk 0:02:11.5]}
19... Qe6 {[%clk 0:02:20.7]} 20. Bxc6 {[%clk 0:01:49.2]} 20... bxc6 {[%clk
0:02:16.3]} 21. Nxd4 {[%clk 0:01:48.9]} 21... Qf6 {[%clk 0:01:34.9]} 22. e3
{[%clk 0:00:37.3]} 22... c5 {[%clk 0:01:27.4]} 0-1

[Event "Early-Titled-Tuesday-Blitz-February-13-2024"]
[Site "Chess.com"]
[Date "2024.02.13"]
[Round "6"]
[White "Gerodot71"]
[Black "AlmasRakhmatullaev"]
[Result "1-0"]
[WhiteElo "2645"]
[BlackElo "2866"]
[TimeControl "180+1"]
[EndTime "9:08:00 PST"]
[Termination "Gerodot71 won by resignation"]

1. d4 {[%clk 0:03:00.9]} 1... d5 {[%clk 0:02:59.4]} 2. c4 {[%clk 0:03:01.2]}
2... e5 {[%clk 0:02:59.3]} 3. dxe5 {[%clk 0:02:58.5]} 3... d4 {[%clk 0:02:58.4]}
4. Nf3 {[%clk 0:02:58.8]} 4... Nc6 {[%clk 0:02:57.8]} 5. a3 {[%clk 0:02:57.2]}
5... g6 {[%clk 0:02:57.4]} 6. e3 {[%clk 0:02:56.3]} 6... Bg4 {[%clk 0:02:51.4]}
7. Be2 {[%clk 0:02:50]} 7... dxe3 {[%clk 0:02:47.9]} 8. Bxe3 {[%clk 0:02:45]}
8... Qxd1+ {[%clk 0:02:41.7]} 9. Bxd1 {[%clk 0:02:45.9]} 9... Bg7 {[%clk
0:02:41.4]} 10. Nbd2 {[%clk 0:02:41.7]} 10... Nge7 {[%clk 0:02:35.7]} 11. h3
{[%clk 0:02:35.6]} 11... Bxf3 {[%clk 0:02:33.9]} 12. Nxf3 {[%clk 0:02:36.5]}
12... Nxe5 {[%clk 0:02:31.4]} 13. Nxe5 {[%clk 0:02:36.1]} 13... Bxe5 {[%clk
0:02:32.2]} 14. Ba4+ {[%clk 0:02:36.8]} 14... c6 {[%clk 0:02:26.4]} 15. O-O-O
{[%clk 0:02:36.6]} 15... O-O {[%clk 0:01:50.5]} 16. Rd7 {[%clk 0:02:22.4]} 16...
Nf5 {[%clk 0:01:46.2]} 17. Bc5 {[%clk 0:02:20.9]} 17... Rfb8 {[%clk 0:01:14]}
18. Re1 {[%clk 0:02:08.9]} 18... Bf4+ {[%clk 0:01:07.1]} 19. Kb1 {[%clk
0:02:06.1]} 19... b6 {[%clk 0:01:06.2]} 20. Bb4 {[%clk 0:02:05.7]} 20... a5
{[%clk 0:01:01]} 21. Bc3 {[%clk 0:02:02.7]} 21... b5 {[%clk 0:00:33.4]} 22. cxb5
{[%clk 0:02:03.6]} 22... cxb5 {[%clk 0:00:34.3]} 23. Bb3 {[%clk 0:02:04.2]}
23... Nd6 {[%clk 0:00:24.8]} 24. g3 {[%clk 0:02:00.5]} 24... b4 {[%clk 0:00:25]}
25. axb4 {[%clk 0:01:59.1]} 25... axb4 {[%clk 0:00:19.6]} 26. Bf6 {[%clk
0:01:59.5]} 1-0

[Event "Early-Titled-Tuesday-Blitz-February-13-2024"]
[Site "Chess.com"]
[Date "2024.02.13"]
[Round "6"]
[White "saraswathii"]
[Black "LeoLV10"]
[Result "1-0"]
[WhiteElo "2399"]
[BlackElo "2526"]
[TimeControl "180+1"]
[EndTime "9:08:11 PST"]
[Termination "saraswathii won by resignation"]

1. e4 {[%clk 0:02:58.6]} 1... c6 {[%clk 0:03:00.1]} 2. d3 {[%clk 0:02:57.2]}
2... d5 {[%clk 0:03:01]} 3. Nd2 {[%clk 0:02:56.5]} 3... e5 {[%clk 0:02:59.7]} 4.
Ngf3 {[%clk 0:02:56.1]} 4... Bd6 {[%clk 0:02:59.6]} 5. g3 {[%clk 0:02:55.5]}
5... Ne7 {[%clk 0:02:59.7]} 6. Bg2 {[%clk 0:02:54.7]} 6... O-O {[%clk
0:02:58.9]} 7. O-O {[%clk 0:02:53.4]} 7... Nd7 {[%clk 0:02:58.9]} 8. Re1 {[%clk
0:02:50.6]} 8... Re8 {[%clk 0:02:56.5]} 9. h4 {[%clk 0:02:50]} 9... h5 {[%clk
0:02:53.7]} 10. Ng5 {[%clk 0:02:47.8]} 10... Nf6 {[%clk 0:02:53.2]} 11. Bf3
{[%clk 0:02:43.5]} 11... Bg4 {[%clk 0:02:51.1]} 12. Bxg4 {[%clk 0:02:38.5]}
12... Nxg4 {[%clk 0:02:52]} 13. Nf1 {[%clk 0:02:33.8]} 13... Bc5 {[%clk
0:02:37.5]} 14. Be3 {[%clk 0:02:25.5]} 14... Nxe3 {[%clk 0:02:22.9]} 15. Qxh5
{[%clk 0:02:17.8]} 15... Ng6 {[%clk 0:02:09.2]} 16. Nxe3 {[%clk 0:02:11.7]}
16... Bb6 {[%clk 0:02:01.4]} 17. Nf5 {[%clk 0:01:52.1]} 17... Qf6 {[%clk
0:02:00.4]} 18. Qh7+ {[%clk 0:01:44.1]} 18... Kf8 {[%clk 0:02:00.3]} 19. h5
{[%clk 0:01:26.1]} 19... Rec8 {[%clk 0:01:41.1]} 20. hxg6 {[%clk 0:01:23]} 20...
Ke8 {[%clk 0:01:12]} 21. gxf7+ {[%clk 0:01:18.5]} 21... Kd7 {[%clk 0:01:11.2]}
22. Qxg7 {[%clk 0:01:04.3]} 22... Qxg7 {[%clk 0:01:11.2]} 23. Nxg7 {[%clk
0:01:03.5]} 23... Ke7 {[%clk 0:01:11.7]} 24. N7e6 {[%clk 0:00:58.7]} 24... Kf6
{[%clk 0:01:07.6]} 25. f8=Q+ {[%clk 0:00:51.7]} 25... Rxf8 {[%clk 0:01:07.6]}
26. Nxf8 {[%clk 0:00:51.1]} 26... Rxf8 {[%clk 0:01:07.2]} 27. Nh7+ {[%clk
0:00:50.5]} 1-0

[Event "Early-Titled-Tuesday-Blitz-February-13-2024"]
[Site "Chess.com"]
[Date "2024.02.13"]
[Round "6"]
[White "Yurovskykh_Oleksandr"]
[Black "Tolyanius"]
[Result "1-0"]
[WhiteElo "2661"]
[BlackElo "2502"]
[TimeControl "180+1"]
[EndTime "9:08:13 PST"]
[Termination "Yurovskykh_Oleksandr won by resignation"]

1. d4 {[%clk 0:03:00.9]} 1... d5 {[%clk 0:02:59.7]} 2. Bf4 {[%clk 0:02:58.2]}
2... Nc6 {[%clk 0:02:59.2]} 3. e3 {[%clk 0:02:56.9]} 3... f6 {[%clk 0:02:59.4]}
4. Nf3 {[%clk 0:02:56.4]} 4... Bg4 {[%clk 0:02:58.9]} 5. h3 {[%clk 0:02:54.8]}
5... Bxf3 {[%clk 0:02:52.3]} 6. Qxf3 {[%clk 0:02:55.7]} 6... e5 {[%clk
0:02:52.3]} 7. Bh2 {[%clk 0:02:40.6]} 7... e4 {[%clk 0:02:39.6]} 8. Qd1 {[%clk
0:02:33]} 8... a6 {[%clk 0:02:40]} 9. c4 {[%clk 0:02:29.8]} 9... f5 {[%clk
0:02:30.7]} 10. Nc3 {[%clk 0:02:28.3]} 10... Nf6 {[%clk 0:02:29.8]} 11. Qb3
{[%clk 0:02:14.3]} 11... Na5 {[%clk 0:02:11.6]} 12. Qa4+ {[%clk 0:02:13.2]}
12... c6 {[%clk 0:02:11.5]} 13. cxd5 {[%clk 0:02:13.1]} 13... Nxd5 {[%clk
0:01:45.9]} 14. Nxd5 {[%clk 0:02:09.8]} 14... Qxd5 {[%clk 0:01:42.9]} 15. Rc1
{[%clk 0:02:09.8]} 15... b6 {[%clk 0:01:14]} 16. b4 {[%clk 0:01:32.2]} 16... Nb7
{[%clk 0:01:12.1]} 17. Qxc6+ {[%clk 0:01:32.5]} 17... Qxc6 {[%clk 0:01:10.7]}
18. Rxc6 {[%clk 0:01:33.4]} 18... Bxb4+ {[%clk 0:01:09.6]} 19. Kd1 {[%clk
0:01:34]} 19... b5 {[%clk 0:00:18.2]} 20. Rxa6 {[%clk 0:01:29.3]} 20... Rxa6
{[%clk 0:00:19.1]} 21. Bxb5+ {[%clk 0:01:28.2]} 21... Ke7 {[%clk 0:00:20]} 22.
Bxa6 {[%clk 0:01:26.5]} 22... Ra8 {[%clk 0:00:20.7]} 23. Bxb7 {[%clk 0:01:20.1]}
23... Ra3 {[%clk 0:00:20.1]} 1-0

[Event "Early-Titled-Tuesday-Blitz-February-13-2024"]
[Site "Chess.com"]
[Date "2024.02.13"]
[Round "6"]
[White "yuriydovzik"]
[Black "Teidi96"]
[Result "1-0"]
[WhiteElo "2121"]
[BlackElo "2285"]
[TimeControl "180+1"]
[EndTime "9:08:15 PST"]
[Termination "yuriydovzik won by resignation"]

1. Nf3 {[%clk 0:02:59.6]} 1... d5 {[%clk 0:02:59.6]} 2. g3 {[%clk 0:02:56.7]}
2... e6 {[%clk 0:02:59.6]} 3. Bg2 {[%clk 0:02:56.8]} 3... Nf6 {[%clk 0:03:00.4]}
4. O-O {[%clk 0:02:56.5]} 4... Be7 {[%clk 0:03:01.1]} 5. c4 {[%clk 0:02:56.1]}
5... O-O {[%clk 0:03:01.3]} 6. b3 {[%clk 0:02:53.6]} 6... c6 {[%clk 0:02:58.2]}
7. Bb2 {[%clk 0:02:52.3]} 7... Nbd7 {[%clk 0:02:56.8]} 8. d4 {[%clk 0:02:51.5]}
8... b6 {[%clk 0:02:53.6]} 9. Nbd2 {[%clk 0:02:47.9]} 9... Bb7 {[%clk
0:02:51.1]} 10. Ne5 {[%clk 0:02:43.1]} 10... Nxe5 {[%clk 0:02:48.7]} 11. dxe5
{[%clk 0:02:42.1]} 11... Nd7 {[%clk 0:02:49.4]} 12. e4 {[%clk 0:02:33.7]} 12...
dxc4 {[%clk 0:02:46.8]} 13. Nxc4 {[%clk 0:02:33.2]} 13... f6 {[%clk 0:02:42.3]}
14. Qc2 {[%clk 0:02:03]} 14... fxe5 {[%clk 0:02:39.7]} 15. Rad1 {[%clk
0:01:46.9]} 15... Qc7 {[%clk 0:02:39]} 16. Bh3 {[%clk 0:01:37.6]} 16... Rf6
{[%clk 0:02:35.4]} 17. f4 {[%clk 0:01:30.7]} 17... Rh6 {[%clk 0:02:32.6]} 18.
Bg4 {[%clk 0:01:14.4]} 18... exf4 {[%clk 0:02:32.7]} 19. Rxf4 {[%clk 0:00:56.2]}
19... Rf8 {[%clk 0:02:25.4]} 20. Qc3 {[%clk 0:00:31.4]} 20... Rg6 {[%clk
0:01:53.4]} 21. Bxe6+ {[%clk 0:00:30.2]} 21... Kh8 {[%clk 0:01:51]} 22. Rxd7
{[%clk 0:00:21.4]} 22... Bc5+ {[%clk 0:01:46.4]} 23. Kh1 {[%clk 0:00:17.1]}
23... Qb8 {[%clk 0:01:39.6]} 24. Rxg7 {[%clk 0:00:15.6]} 1-0

[Event "Early-Titled-Tuesday-Blitz-February-13-2024"]
[Site "Chess.com"]
[Date "2024.02.13"]
[Round "6"]
[White "CaspiIsrael"]
[Black "Shahdad2007"]
[Result "1-0"]
[WhiteElo "2771"]
[BlackElo "2495"]
[TimeControl "180+1"]
[EndTime "9:08:19 PST"]
[Termination "CaspiIsrael won by checkmate"]

1. e4 {[%clk 0:03:00.9]} 1... c6 {[%clk 0:02:59]} 2. f3 {[%clk 0:03:00]} 2... g6
{[%clk 0:02:57.3]} 3. d4 {[%clk 0:03:00.4]} 3... Bg7 {[%clk 0:02:57.5]} 4. c4
{[%clk 0:03:00]} 4... d5 {[%clk 0:02:56.8]} 5. e5 {[%clk 0:02:55.4]} 5... f6
{[%clk 0:02:56.1]} 6. f4 {[%clk 0:02:55.4]} 6... Nh6 {[%clk 0:02:55.5]} 7. Nc3
{[%clk 0:02:55.3]} 7... O-O {[%clk 0:02:55.3]} 8. Nf3 {[%clk 0:02:55.3]} 8...
fxe5 {[%clk 0:02:54.9]} 9. fxe5 {[%clk 0:02:54.9]} 9... Nf5 {[%clk 0:02:52.9]}
10. cxd5 {[%clk 0:02:52.7]} 10... cxd5 {[%clk 0:02:51.9]} 11. Qb3 {[%clk
0:02:53.3]} 11... e6 {[%clk 0:02:49.3]} 12. Bg5 {[%clk 0:02:53.3]} 12... Qa5
{[%clk 0:02:43.4]} 13. O-O-O {[%clk 0:02:48.9]} 13... Nc6 {[%clk 0:02:42.2]} 14.
Kb1 {[%clk 0:02:48.1]} 14... a6 {[%clk 0:02:39.6]} 15. Be2 {[%clk 0:02:47.1]}
15... b5 {[%clk 0:02:39.8]} 16. g4 {[%clk 0:02:47]} 16... Nh6 {[%clk 0:02:39.7]}
17. h3 {[%clk 0:02:43.8]} 17... Qb6 {[%clk 0:02:38.6]} 18. Na4 {[%clk
0:02:41.9]} 18... Qa7 {[%clk 0:02:32.3]} 19. Nc5 {[%clk 0:02:41.7]} 19... Nf7
{[%clk 0:02:30.8]} 20. Bf6 {[%clk 0:02:30.9]} 20... Bxf6 {[%clk 0:02:24.7]} 21.
exf6 {[%clk 0:02:31.8]} 21... Nxd4 {[%clk 0:02:24.9]} 22. Rxd4 {[%clk
0:02:22.5]} 22... Qxc5 {[%clk 0:02:25]} 23. Rc1 {[%clk 0:02:08.9]} 23... Qb6
{[%clk 0:02:24.6]} 24. Qe3 {[%clk 0:02:05.5]} 24... Bb7 {[%clk 0:02:19.4]} 25.
Ne5 {[%clk 0:01:59.3]} 25... Rad8 {[%clk 0:02:15.6]} 26. g5 {[%clk 0:01:57.3]}
26... Qd6 {[%clk 0:02:02.1]} 27. Nxf7 {[%clk 0:01:34.2]} 27... Rxf7 {[%clk
0:02:01.9]} 28. Rh4 {[%clk 0:01:31.9]} 28... e5 {[%clk 0:02:00.8]} 29. Bd3
{[%clk 0:01:24.7]} 29... e4 {[%clk 0:01:59.6]} 30. Bc2 {[%clk 0:01:19.6]} 30...
d4 {[%clk 0:01:59.7]} 31. Qe1 {[%clk 0:01:18.7]} 31... d3 {[%clk 0:01:40.6]} 32.
Bb3 {[%clk 0:01:18.7]} 32... d2 {[%clk 0:01:41]} 33. Bxf7+ {[%clk 0:01:17.3]}
33... Kxf7 {[%clk 0:01:41.3]} 34. Rxh7+ {[%clk 0:01:17.1]} 34... Ke6 {[%clk
0:01:40.5]} 35. Re7+ {[%clk 0:01:09.6]} 35... Kf5 {[%clk 0:01:40.7]} 36. Qf2+
{[%clk 0:01:05.6]} 36... Kxg5 {[%clk 0:01:24.1]} 37. Rg1+ {[%clk 0:01:04.9]}
37... Kh5 {[%clk 0:01:19.7]} 38. Rh7# {[%clk 0:00:50.5]} 1-0

[Event "Early-Titled-Tuesday-Blitz-February-13-2024"]
[Site "Chess.com"]
[Date "2024.02.13"]
[Round "6"]
[White "AttackSparrow"]
[Black "mertfelin"]
[Result "1-0"]
[WhiteElo "2622"]
[BlackElo "2322"]
[TimeControl "180+1"]
[EndTime "9:08:25 PST"]
[Termination "AttackSparrow won by resignation"]

1. Nf3 {[%clk 0:03:00.9]} 1... d5 {[%clk 0:03:00.2]} 2. c4 {[%clk 0:03:01.1]}
2... e6 {[%clk 0:02:59.8]} 3. g3 {[%clk 0:03:01.3]} 3... Nf6 {[%clk 0:02:59.8]}
4. Bg2 {[%clk 0:03:01.9]} 4... Be7 {[%clk 0:02:59.8]} 5. O-O {[%clk 0:03:02.4]}
5... O-O {[%clk 0:03:00.7]} 6. b3 {[%clk 0:03:03]} 6... b6 {[%clk 0:03:01.3]} 7.
cxd5 {[%clk 0:03:02.8]} 7... Nxd5 {[%clk 0:03:01.4]} 8. Bb2 {[%clk 0:02:59.5]}
8... Bb7 {[%clk 0:03:01.8]} 9. d4 {[%clk 0:02:58.6]} 9... Nd7 {[%clk 0:03:02.3]}
10. Nbd2 {[%clk 0:02:27.4]} 10... c5 {[%clk 0:02:59.9]} 11. Rc1 {[%clk
0:02:18.7]} 11... Rc8 {[%clk 0:02:55]} 12. Nc4 {[%clk 0:02:11.8]} 12... b5
{[%clk 0:02:52.7]} 13. Nce5 {[%clk 0:02:12.2]} 13... Nxe5 {[%clk 0:02:53]} 14.
Nxe5 {[%clk 0:02:12.6]} 14... f6 {[%clk 0:02:53.6]} 15. Nd3 {[%clk 0:02:08.5]}
15... cxd4 {[%clk 0:02:53.7]} 16. Bxd4 {[%clk 0:02:01]} 16... e5 {[%clk
0:02:46.6]} 17. Bxa7 {[%clk 0:01:56.3]} 17... Ra8 {[%clk 0:02:42.5]} 18. Nc5
{[%clk 0:01:48.3]} 18... Bxc5 {[%clk 0:02:28.6]} 19. Bxc5 {[%clk 0:01:49.2]}
19... Re8 {[%clk 0:02:28.7]} 20. Qd2 {[%clk 0:01:40.5]} 20... Qd7 {[%clk
0:01:55.7]} 21. Rfd1 {[%clk 0:01:38.7]} 21... Red8 {[%clk 0:01:46.6]} 22. e4
{[%clk 0:01:16.1]} 22... Nb6 {[%clk 0:01:33.7]} 23. Qe2 {[%clk 0:01:14.4]} 23...
Qc6 {[%clk 0:01:30.7]} 24. Rxd8+ {[%clk 0:01:01.2]} 24... Rxd8 {[%clk
0:01:30.5]} 25. Be3 {[%clk 0:01:01.9]} 25... Qd6 {[%clk 0:01:21.5]} 26. Qxb5
{[%clk 0:00:59.8]} 26... Rc8 {[%clk 0:00:51.7]} 27. Rxc8+ {[%clk 0:00:55.6]}
27... Bxc8 {[%clk 0:00:51.9]} 28. Bxb6 {[%clk 0:00:47.5]} 1-0

[Event "Early-Titled-Tuesday-Blitz-February-13-2024"]
[Site "Chess.com"]
[Date "2024.02.13"]
[Round "6"]
[White "mishanick"]
[Black "Akewjon"]
[Result "1-0"]
[WhiteElo "2976"]
[BlackElo "2797"]
[TimeControl "180+1"]
[EndTime "9:08:26 PST"]
[Termination "mishanick won by resignation"]

1. d4 {[%clk 0:02:42.1]} 1... Nf6 {[%clk 0:02:59.7]} 2. c4 {[%clk 0:02:41.6]}
2... e6 {[%clk 0:02:59.9]} 3. Nc3 {[%clk 0:02:41.3]} 3... Bb4 {[%clk 0:02:59.5]}
4. e3 {[%clk 0:02:41.7]} 4... O-O {[%clk 0:02:58.4]} 5. Bd3 {[%clk 0:02:42.4]}
5... Re8 {[%clk 0:02:57.6]} 6. Ne2 {[%clk 0:02:41.1]} 6... d5 {[%clk 0:02:55.9]}
7. O-O {[%clk 0:02:40]} 7... Nbd7 {[%clk 0:02:55.7]} 8. Qb3 {[%clk 0:02:40.4]}
8... Bd6 {[%clk 0:02:55.6]} 9. cxd5 {[%clk 0:02:38.1]} 9... exd5 {[%clk
0:02:55.6]} 10. Nxd5 {[%clk 0:02:38.4]} 10... Nxd5 {[%clk 0:02:55.7]} 11. Qxd5
{[%clk 0:02:38.1]} 11... Nc5 {[%clk 0:02:56]} 12. Bxh7+ {[%clk 0:02:36.6]} 12...
Kxh7 {[%clk 0:02:56.9]} 13. Qh5+ {[%clk 0:02:36.9]} 13... Kg8 {[%clk 0:02:57.3]}
14. dxc5 {[%clk 0:02:37.4]} 14... Re5 {[%clk 0:02:58]} 15. Qf3 {[%clk
0:02:37.4]} 15... Rxc5 {[%clk 0:02:54.3]} 16. Bd2 {[%clk 0:02:24.7]} 16... Qh4
{[%clk 0:02:21.8]} 17. g3 {[%clk 0:02:02.2]} 17... Bg4 {[%clk 0:01:43.3]} 18.
Qxb7 {[%clk 0:01:53.6]} 18... Qd8 {[%clk 0:01:43.6]} 19. Nd4 {[%clk 0:01:50.9]}
19... Rh5 {[%clk 0:01:11.3]} 20. Qe4 {[%clk 0:01:38.1]} 20... f5 {[%clk
0:01:01.3]} 21. Qc6 {[%clk 0:01:09.6]} 21... Kh8 {[%clk 0:00:40.7]} 22. Bc3
{[%clk 0:01:06.8]} 22... Rb8 {[%clk 0:00:29.8]} 23. Ne6 {[%clk 0:01:02.6]} 1-0

[Event "Early-Titled-Tuesday-Blitz-February-13-2024"]
[Site "Chess.com"]
[Date "2024.02.13"]
[Round "6"]
[White "chess_blitz00"]
[Black "MKlose11"]
[Result "0-1"]
[WhiteElo "2470"]
[BlackElo "2648"]
[TimeControl "180+1"]
[EndTime "9:08:29 PST"]
[Termination "MKlose11 won on time"]

1. d3 {[%clk 0:03:00.9]} 1... Nf6 {[%clk 0:02:57]} 2. g3 {[%clk 0:02:58.4]} 2...
g6 {[%clk 0:02:57.9]} 3. Bg2 {[%clk 0:02:58.9]} 3... c5 {[%clk 0:02:54.9]} 4.
Nc3 {[%clk 0:02:52.1]} 4... Nc6 {[%clk 0:02:54.3]} 5. Bd2 {[%clk 0:02:52.2]}
5... Bg7 {[%clk 0:02:53.2]} 6. Qc1 {[%clk 0:02:52.4]} 6... h5 {[%clk 0:02:52.2]}
7. Nf3 {[%clk 0:02:47.4]} 7... Rb8 {[%clk 0:02:51.4]} 8. a4 {[%clk 0:02:36.6]}
8... a6 {[%clk 0:02:50.8]} 9. e4 {[%clk 0:02:00.4]} 9... d6 {[%clk 0:02:32.5]}
10. Bf4 {[%clk 0:01:50.7]} 10... Nd4 {[%clk 0:02:25.5]} 11. e5 {[%clk 0:01:38]}
11... Nxf3+ {[%clk 0:01:51.7]} 12. Bxf3 {[%clk 0:01:38.9]} 12... Ng4 {[%clk
0:01:52]} 13. exd6 {[%clk 0:01:26.3]} 13... exd6 {[%clk 0:01:52.9]} 14. O-O
{[%clk 0:01:00.1]} 14... O-O {[%clk 0:01:50.9]} 15. Re1 {[%clk 0:00:41.8]} 15...
Ne5 {[%clk 0:01:48.6]} 16. Bg2 {[%clk 0:00:35.2]} 16... Be6 {[%clk 0:01:43.4]}
17. Bh6 {[%clk 0:00:28.2]} 17... b5 {[%clk 0:01:41.1]} 18. Bxg7 {[%clk
0:00:27.6]} 18... Kxg7 {[%clk 0:01:42]} 19. axb5 {[%clk 0:00:26.7]} 19... axb5
{[%clk 0:01:41.3]} 20. Ra7 {[%clk 0:00:23.8]} 20... Qb6 {[%clk 0:01:30]} 21. Qa1
{[%clk 0:00:17.5]} 21... b4 {[%clk 0:01:22.4]} 0-1